Cogmind - Beta 13 @@@ ROGUE MODE // 2024.04.02 @ 20:28:12 Player: lazy_engineer Result: Destroyed by G-34 Mercenary with Small Laser Performance ------------- Evolutions (0) 0 Regions Visited (1) 200 Robots Destroyed (20) 100 Value Destroyed (385) 385 Prototype IDs (0) 0 Alien Tech Used (0) 0 Bonus (0) 0 TOTAL SCORE: 685 Bonus ------- None Cogmind --------- Core Integrity 0/250 Matter 300/300 Energy 100/100 System Corruption 1% Temperature Cool (6) Movement Core (100) Ox1 Location -10/Materials Parts ------- > --- POWER (1) -------- (None) > --- PROPULSION (2) --- (None) > --- UTILITY (2) ------ Small Storage Unit Hacking Suite > --- WEAPON (2) ------- (None) > --- INVENTORY (8) ---- Improved Hover Unit Improved Terrain Scanner Seismic Detector Seismic Detector Seismic Detector Peak State ------------ > --- POWER ------------ Ion Engine > --- PROPULSION ------- Improved Hover Unit Improved Hover Unit > --- UTILITY ---------- Small Storage Unit Hacking Suite > --- WEAPON ----------- Assault Rifle Plasma Cutter > --- INVENTORY -------- Improved Hover Unit Improved Hover Unit Improved Terrain Scanner Seismic Detector Seismic Detector Seismic Detector Plasma Cutter [Rating: 13] Favorites ----------- Power Ion Engine Engine Ion Engine Propulsion Improved Hover Unit Treads Light Treads Wheel Wheel Hover Unit Improved Hover Unit Utility Small Storage Unit Device Seismic Detector Storage Small Storage Unit Hackware Hacking Suite Weapon Assault Rifle Ballistic Gun Assault Rifle Special Weapon Plasma Cutter Build | -11 -10 ------- Run | Yrd Mat Slots Evolved . | . . Power . | . . Propulsion . | . . Utility . | . . Weapon . | . . Parts Attached 15 | 7 8 Power 1 | 1 . Engine 1 | 1 . Core . | . . Reactor . | . . Propulsion 5 | 2 3 Treads 1 | 1 . Leg . | . . Wheel 1 | 1 . Hover 3 | . 3 Flight . | . . Utility 3 | 2 1 Device 1 | 1 . Storage 1 | 1 . Processor . | . . Hackware 1 | . 1 Protection . | . . Artifact . | . . Weapon 6 | 2 4 Energy Gun . | . . Energy Cannon . | . . Ballistic Gun 2 | 2 . Ballistic Cannon . | . . Launcher . | . . Special Weapon 4 | . 4 Impact Weapon . | . . Slashing Weapon . | . . Piercing Weapon . | . . Special Melee Weapon . | . . Unidentified Prototypes . | . . Parts Lost 10 | . 10 Power 1 | . 1 Propulsion 3 | . 3 Utility . | . . Weapon 6 | . 6 Highest Loss Streak 5 | . 5 To Critical Strikes . | . . Average Slot Usage (%) 86 | . 86 Engine 11 | . 11 Hover 25 | . 25 Device 1 | . 1 Storage 14 | . 14 Hackware 7 | . 7 Ballistic Gun 20 | . 20 Special Weapon 5 | . 5 Naked Turns . | . . Heaviest Build 15 | 15 15 Greatest Support 14 | 10 14 Greatest Overweight (x) 4 | 1 4 Average Overweight (x) . | . . Largest Inventory Capacity 8 | 8 8 Average Capacity 7 | 7 8 Most Carried 8 | 3 8 Average Carried 6 | 1 7 Final Capacity 8 | 8 8 Final Carried 5 | 3 5 Class Distribution -------------------- 100% | Mutant Dominant Class ---------------- Mutant | -10/Materials Resources | -11 -10 ----------- Run | Yrd Mat Matter Collected 603 | 331 272 Remotely . | . . Salvage Created 602 | 155 447 Parts 35 | 8 27 Haulers Intercepted . | . . Recyclers Shooed . | . . Parts Field Recycled . | . . Retrieved Matter . | . . Parts Self-Destructed . | . . Prevented . | . . Kills | -11 -10 ------- Run | Yrd Mat Combat Hostiles Destroyed 12 | . 12 Guns 10 | . 10 Cannons 2 | . 2 Classes Destroyed 5 | 2 3 Tunneler 5 | 5 . Recycler 1 | 1 . Operator 2 | . 2 Swarmer 4 | . 4 Grunt 8 | . 8 Best Kill Streak 6 | 5 6 Combat Bots Only 6 | . 6 Max Kills in Single Turn 2 | 1 2 Gunslinging 1 | . 1 Exploded . | . . Melee . | . . Uniques/NPCs Destroyed . | . . Combat | -11 -10 -------- Run | Yrd Mat Hostile Shots Fired 112 | . 112 Missed 34 | . 34 Damage Taken 873 | . 873 Core 259 | . 259 Absorbed by Shields . | . . Core Remaining (%) 100 | 100 . Volleys Fired 65 | 12 53 Largest 2 | 2 2 Hottest 40 | 40 40 Shots Fired 112 | 24 88 Gun 96 | 24 72 Cannon . | . . Launcher . | . . Special 16 | . 16 Kinetic 96 | 24 72 Thermal 16 | . 16 Explosive . | . . Electromagnetic . | . . Robot Hit Streak 9 | 5 9 Robot Miss Streak 2 | 2 2 Penetration Max . | . . Secondary Targets 1 | . 1 Max Gunslinging Chain 1 | . 1 Shots Hit Robots 73 | 15 58 Core Hits 31 | 7 24 Critical Kills . | . . Critical Parts Destroyed 1 | 1 . Critical Strikes 1 | 1 . Destroy 1 | 1 . Melee Attacks . | . . Impact . | . . Slashing . | . . Piercing . | . . Sneak Attacks . | . . Combat Hostiles . | . . Follow-up Attacks . | . . Damage Inflicted 937 | 186 751 Guns 827 | 186 641 Cannons . | . . Explosions . | . . Melee . | . . Ramming . | . . Kinetic 827 | 186 641 Thermal 110 | . 110 Explosive . | . . Electromagnetic . | . . Impact . | . . Slashing . | . . Piercing . | . . Highest Corruption 1 | . 1 Average Corruption 1 | . 1 Corruption Purged . | . . Corruption Blocked . | . . Effects 3 | . 3 Heat Flow Errors 1 | . 1 Data Loss (minor) 1 | . 1 Weapon Failures 1 | . 1 Overload Shots . | . . Overflow Damage . | . . Projectiles . | . . Explosions . | . . Melee . | . . Knockbacks . | . . Impact . | . . Kinetic . | . . Secondary . | . . Self-Inflicted Damage . | . . Shots . | . . Rammed . | . . Targets Rammed . | . . Kicked . | . . Crushed . | . . Highest Temperature 160 | . 160 Average Temperature 36 | . 36 Received Heat Transfer 405 | . 405 Siege Activations . | . . Robots Corrupted . | . . Combat Hostiles . | . . Parts Fried . | . . Impact Corruptions . | . . Robots Melted . | . . Combat Hostiles . | . . Parts Melted . | . . Heat Transferred 370 | . 370 Parts Sabotaged . | . . Parts Stolen . | . . Parts Stripped . | . . Power Chain Reactions . | . . Alert | -11 -10 ------- Run | Yrd Mat Peak Influence 356 | 30 356 Initial 19 | . 19 Average 152 | 13 184 Maximum Alert Level 1 | . 1 Low Security (%) 57 | 100 47 Level 1 42 | . 52 Level 2 . | . . Level 3 . | . . Level 4 . | . . Level 5 . | . . High Security . | . . Max Security . | . . Squads Dispatched 8 | . 8 Investigation 6 | . 6 Extermination . | . . Reinforcement 2 | . 2 Assault . | . . Garrison . | . . Intercept . | . . Searches Triggered . | . . Construction Impeded . | . . Haulers Reinforced . | . . Active Scanning Responses . | . . Cargo Convoy Interrupts . | . . Stealth | -11 -10 --------- Run | Yrd Mat Distress Signals 5 | . 5 Communications Jammed . | . . Distress Signals . | . . Times Spotted 33 | . 33 Peak Tracking Total 9 | . 9 Tactical Retreats 4 | . 4 Traps | -11 -10 ------- Run | Yrd Mat Traps Triggered 1 | . 1 Indirectly . | . . Trap Hack Attempts . | . . Triggered . | . . Disarmed . | . . Reprogrammed . | . . Reused . | . . Traps Extracted . | . . Installed . | . . Triggered . | . . Machines | -11 -10 ---------- Run | Yrd Mat Machines Disabled . | . . Max in Single Turn . | . . Machines Repaired . | . . Machines Dismantled . | . . Machines Sabotaged . | . . Overloaded Fab Kills . | . . Hacking | -11 -10 --------- Run | Yrd Mat Machines Accessed 7 | . 7 Terminals 5 | . 5 Fabricators . | . . Repair Stations . | . . Recycling Units 2 | . 2 Scanalyzers . | . . Garrison Access . | . . Total Hacks 19 | . 19 Successful 7 | . 7 Failed 12 | . 12 Catastrophic 2 | . 2 Database Lockouts . | . . Manual 11 | . 11 Terminals 17 | . 17 Fabricators . | . . Repair Stations . | . . Recycling Units 2 | . 2 Scanalyzers . | . . Garrison Access . | . . Terminal Hacks 4 | . 4 Level Access Points 1 | . 1 Emergency Access Points 1 | . 1 Hauler Manifests 1 | . 1 Zone Layout 1 | . 1 Fabricator Hacks . | . . Repair Station Hacks . | . . Recycling Unit Hacks . | . . Scanalyzer . | . . Garrison Access Hacks . | . . Unauthorized Hacks 3 | . 3 Terminals 1 | . 1 Disrupt 1 | . 1 Fabricators . | . . Repair Stations . | . . Recycling Units 2 | . 2 Tunnel 2 | . 2 Scanalyzers . | . . Garrison Access . | . . Data Cores Recovered 1 | . 1 Used 1 | . 1 Hacking Detections 5 | . 5 Full Trace Events 4 | . 4 Feedback Events . | . . Feedback Blocked . | . . Robot Schematics Acquired . | . . Robots Built . | . . Authchips . | . . Time . | . . Total Robot Build Rating . | . . Part Schematics Acquired . | . . Parts Built . | . . Authchips . | . . Time . | . . Total Part Build Rating . | . . Parts Repaired . | . . Time . | . . Parts Recycled . | . . Recycled Matter . | . . Retrieved Matter . | . . Retrieved Components . | . . Parts Scanalyzed . | . . Part Schematics Acquired . | . . Parts Damaged . | . . Bothacking | -11 -10 ------------ Run | Yrd Mat Used RIF Installer . | . . Robots Hacked . | . . Non-combat . | . . Combat . | . . Robot Hacks Applied . | . . Relay Couplers Released . | . . Fabnet Peak Effective % . | . . Robots Rewired . | . . Allies Hacked . | . . Hacks Repelled . | . . Allies | -11 -10 -------- Run | Yrd Mat Total Allies . | . . Largest Group . | . . Highest-Rated Group . | . . Highest-Rated Ally . | . . Total Orders . | . . Ally Attacks . | . . Total Damage . | . . Kills . | . . Allies Corrupted . | . . Allies Melted . | . . Intel | -11 -10 ------- Run | Yrd Mat Robot Analysis Total . | . . Derelict Logs Recovered . | . . Drone Launches . | . . Drone Recoveries . | . . Exploration | -11 -10 ------------- Run | Yrd Mat Turns Passed 713 | 132 581 Spaces Moved 577 | 88 489 Core 22 | 4 18 Treads . | . . Legs . | . . Wheels 97 | 84 13 Hover 458 | . 458 Flight . | . . Fastest Speed 50 | 50 56 Average Speed 66 | 89 62 Slowest Speed 250 | 95 250 Overloaded Moves . | . . Propulsion Burnouts . | . . Robots Hopped . | . . Cave-ins Triggered . | . . Exploration Rate (%) 38 | 5 71 Regions Visited 1 Branch Regions . Pre-discovered Areas 2 | . 2 Known Exits Taken . | . . Unknown Exits Taken 1 | 1 . Scrap Searched . | . . Spaces Dug . | . . Terrain Destroyed . | . . Melee . | . . Projectile . | . . AOE . | . . Terrain Rammed . | . . Walls Destroyed . | . . Machines Disabled . | . . Actions | -11 -10 --------- Run | Yrd Mat Total 775 | 116 659 Wait 96 | . 96 Move 576 | 87 489 Hop . | . . Pick Up 18 | 10 8 Fast Attach 1 | . 1 Attach 14 | 7 7 Detach 1 | . 1 Swap . | . . Drop 2 | . 2 Fire 65 | 12 53 Melee . | . . Ram . | . . Kick . | . . Crush . | . . Escape Stasis . | . . Rewire . | . . Trap . | . . Miscellaneous 2 | . 2 Route ------- -11/Scrapyard -10/Materials (discovered 3 exits: *Mat x3) History --------- Turn | Location | Event 10 | -11/Scrapyard | Discovered new exit (range 15) 133 | -11/Scrapyard | Entered Materials 280 | -10/Materials | Discovered new exit (range 16) 301 | -10/Materials | Build established: Mutant 516 | -10/Materials | Identified exit to Materials 620 | -10/Materials | Core integrity fell below 50% 652 | -10/Materials | Lost 4 parts (1p1n2w) 685 | -10/Materials | Core integrity fell below 20% 714 | -10/Materials | Destroyed by G-34 Mercenary with Small Laser Last Messages --------------- 00613_ Assault Rifle destroyed. 00613_ K-01 Serf destroyed. 00615_ Imp. Hover Unit destroyed. 00615_ Ion Engine destroyed. 00621_ Plasma Cutter destroyed. 00634_ Acquired Plasma Cutter. 00644_ W-16 Scout sends out distress signal. 00658_ G-34 Mercenary destroyed. 00663_ Acquired 44 matter. 00665_ S-10 Pest destroyed. 00673_ O-16 Technician: "IFF HANDSHAKE FAILED. SECURING TERMINAL." 00673_ Imp. Hover Unit destroyed. 00674_ S-10 Pest destroyed. 00675_ K-01 Serf collects debris. 00677_ ALERT: Hostiles spotted, dispatching reinforcements to Terminal M001. 00678_ S-10 Pest destroyed. 00680_ Plasma Cutter destroyed. 00692_ Imp. Hover Unit destroyed. 00694_ Plasma Cutter destroyed. Map ----- +----------------------------------------------------+ | | | | | | | | | | | | | | | | | | | | | | | | | | | | | | | | | | | | | | | | | | | ????????????####???????????????????? | | ????????????#"""???????????????????? | | ??????????###"T"###########????????? | | ????????" o gg #????????? | | ??????????# g @#????????? | | ??????????# """ #########????????? | | ??????????# """ #????????????????? | | ??????????#! """ !#????????????????? | | ??????????# #????????????????? | | ??????????# #????????????????? | | ??????????# ###/#####?????????????? | | ??????????# #[ #?????????????? | | ??????????+ %/= #?????????????? | | ??????????# #= = #?????????????? | | ??????????# #########?????????????? | | ###########/###????????????????????? | | / = [ #????????????????????? | | ##### =!%* #????????????????????? | | ????# = #????????????????????? | | ????# #????????????????????? | | ????# #????????????????????? | | ????# #????????????????????? | | ????# #????????????????????? | | ????# #????????????????????? | | ????###########????????????????????? | | ???????????????????????????????????? | | ???????????????????????????????????? | | ???????????????????????????????????? | | ???????????????????????????????????? | +----------------------------------------------------+ Best States ------------- Heat Dissipation 25 Energy Generation 10 Energy Capacity 250 Matter Stores 300 Matter Capacity 300 Sight Range 16 Terrain Scan Density 10 Evasion (%) 53 Offensive Hacking 10 Item Schematics ----------------- None Robot Schematics ------------------ None Fabricated ------------ Nothing Alien Tech Used ----------------- None Achievements -------------- None Challenges ------------ None Game ------ Seed FortressHardenedGenerator Manual? 0 Play Time 00:24:45 Cumulative 16.1 hours Start 2024.04.02 @ 19:50:51 End 2024.04.02 @ 20:28:12 Sessions 2 Manual Loads 0 Difficulty Rogue Special Mode None Game No. 31 Rogue 31 Adventurer 0 Explorer 0 Win Type - Total 0 Types 0/0/0/0/0/0/0/0/0 Lore% 16 Gallery% 18 Achievement% 18 Wizard Run 0 Options --------- Layout 0 ASCII 0 Keyboard 0 Movement Mouse Keybinds 0 Fullscreen 1 Font 24/Smallcaps Map View 76x50 Zoom Use 0% Tactical HUD 1 Map Filters NONE Filters NONE Steam 1 RUN: 5aa30a87-d7e7-4d98-9e2e-91ff44c07f4c